fUSD/lending_fUSD_20250217
["ID","MTS","AMOUNT","RATE_DAILY","PERIOD"]
[353315754,1739754646228,-500.0,0.00011368,2]
[353315755,1739754646238,-500.0,0.00011368,2]
[353315756,1739754646248,-500.0,0.00011368,2]
[353315757,1739754646258,-500.0,0.00011368,2]
[353315758,1739754646267,-500.0,0.00011368,2]
[353315759,1739754646277,-500.0,0.00011368,2]
[353315760,1739754646289,-500.0,0.00011368,2]
[353315761,1739754646297,-500.0,0.00011368,2]
[353315762,1739754646306,-500.0,0.00011368,2]
[353315763,1739754646315,-500.0,0.00011368,2]
[353315764,1739754646325,-500.0,0.00011368,2]
[353315765,1739754646334,-500.0,0.00011368,2]
[353315766,1739754646343,-500.0,0.00011368,2]
[353315767,1739754646352,-500.0,0.00011368,2]
[353315768,1739754646364,-500.0,0.00011368,2]
[353315769,1739754646373,-500.0,0.00011368,2]
[353315770,1739754646382,-500.0,0.00011368,2]
[353315771,1739754646391,-500.0,0.00011368,2]
[353315772,1739754646401,-500.0,0.00011368,2]
[353315773,1739754646410,-500.0,0.00011368,2]
[353315774,1739754646419,-596.42,0.00011368,2]
[353315775,1739754646428,-500.0,0.00011368,2]
[353315776,1739754646437,-500.0,0.00011368,2]
[353315777,1739754646447,-500.0,0.00011368,2]
[353315778,1739754646456,-699.35,0.00011368,2]
[353315779,1739754646466,-500.0,0.00011368,2]
[353315780,1739754646475,-500.0,0.00011368,2]
[353315781,1739754646484,-500.0,0.00011368,2]
[353315782,1739754646493,-595.22,0.00011368,2]
[353315783,1739754646502,-500.0,0.00011368,2]
[353315784,1739754646511,-500.0,0.00011368,2]
[353315785,1739754646520,-500.0,0.00011368,2]
[353315786,1739754646529,-2024.07687,0.00011368,2]
[353315787,1739754646538,-151.0,0.00011369,2]
[353315788,1739754646547,-419.82525921,0.00011401,2]
[353315789,1739754646556,-150.0,0.00011404,2]
[353315791,1739754646565,-4698.40184899,0.00011419,2]
[353315793,1739754646574,-419.82525921,0.00011436,2]
[353315794,1739754646583,-524.915154,0.00011448,2]
[353315795,1739754646592,-500.0,0.00011448,2]
[353315796,1739754646601,-500.0,0.00011448,2]
[353315797,1739754646610,-500.0,0.00011448,2]
[353315798,1739754646619,-781.0,0.00011448,2]
[353315799,1739754646628,-951.22,0.00011448,2]
[353315800,1739754646637,-512.16,0.00011448,2]
[353315801,1739754646646,-500.0,0.00011448,2]
[353315802,1739754646655,-425.245562,0.00011448,2]
[353315803,1739754646664,-580.09,0.00011448,2]
[353315804,1739754646673,-500.0,0.00011448,2]
[353315805,1739754646682,-500.0,0.00011448,2]
[353315806,1739754646691,-639.21,0.00011448,2]
[353315807,1739754646700,-695.47,0.00011448,2]
[353315808,1739754646709,-500.0,0.00011448,2]
[353315809,1739754646718,-500.0,0.00011448,2]
[353315810,1739754646727,-609.51,0.00011448,2]
[353315811,1739754646736,-990.13,0.00011448,2]
[353315812,1739754646745,-500.0,0.00011448,2]
[353315813,1739754646754,-500.0,0.00011448,2]
[353315814,1739754646763,-500.0,0.00011448,2]
[353315815,1739754646772,-500.0,0.00011448,2]
[353315816,1739754646781,-500.0,0.00011448,2]
[353315817,1739754646790,-500.0,0.00011448,2]
[353315818,1739754646799,-500.0,0.00011448,2]
[353315819,1739754646808,-1578.55,0.00011448,2]
[353315820,1739754646817,-1135.12,0.00011448,2]
[353315821,1739754646826,-500.0,0.00011448,2]
[353315822,1739754646835,-500.0,0.00011448,2]
[353315823,1739754646844,-500.0,0.00011448,2]
[353315824,1739754646853,-515.62,0.00011448,2]
[353315825,1739754646863,-594.49,0.00011448,2]
[353315826,1739754646873,-500.0,0.00011448,2]
[353315827,1739754646882,-500.0,0.00011448,2]
[353315828,1739754646892,-500.0,0.00011448,2]
[353315829,1739754646901,-500.0,0.00011448,2]
[353315830,1739754646910,-1004.26,0.00011448,2]
[353315831,1739754646920,-650.83,0.00011448,2]
[353315832,1739754646929,-500.0,0.00011448,2]
[353315833,1739754646939,-500.0,0.00011448,2]
[353315834,1739754646948,-500.0,0.00011448,2]
[353315835,1739754646958,-522.71,0.00011448,2]
[353315836,1739754646968,-833.71,0.00011448,2]
[353315837,1739754646977,-574.05,0.00011448,2]
[353315838,1739754646987,-500.0,0.00011448,2]
[353315839,1739754646995,-500.0,0.00011448,2]
[353315840,1739754647005,-500.0,0.00011448,2]
[353315841,1739754647014,-500.0,0.00011448,2]
[353315842,1739754647024,-500.0,0.00011448,2]
[353315843,1739754647033,-500.0,0.00011448,2]
[353315844,1739754647042,-152.28,0.00011448,2]
[353315845,1739754647184,-500.0,0.00011448,2]
[353315846,1739754647194,-512.0,0.00011448,2]
[353315847,1739754647204,-969.17,0.00011448,2]
[353315848,1739754647214,-500.0,0.00011448,2]
[353315849,1739754647224,-500.0,0.00011448,2]
[353315850,1739754647234,-500.0,0.00011448,2]
[353315851,1739754647244,-500.0,0.00011448,2]
[353315852,1739754647253,-506.96,0.00011448,2]
[353315853,1739754647263,-500.0,0.00011448,2]
[353315854,1739754647273,-440.52588369,0.00011448,2]
[353315855,1739754647286,-500.0,0.00011448,2]
[353315856,1739754647296,-500.0,0.00011448,2]
[353315857,1739754647305,-500.0,0.00011448,2]
[353315858,1739754647315,-500.0,0.00011448,2]
[353315859,1739754647326,-500.0,0.00011448,2]
[353315860,1739754647335,-500.0,0.00011448,2]
[353315861,1739754647344,-564.12,0.00011448,2]
[353315862,1739754647354,-500.0,0.00011448,2]
[353315863,1739754647366,-500.0,0.00011449,2]
[353315864,1739754647376,-500.0,0.00011449,2]
[353315865,1739754647385,-500.0,0.00011449,2]
[353315866,1739754647394,-500.0,0.00011449,2]
[353315867,1739754647404,-500.0,0.00011449,2]
[353315868,1739754647413,-500.0,0.00011449,2]
[353315869,1739754647422,-151.0,0.00011449,2]
[353315870,1739754647431,-632.58900013,0.00011449,2]
[353315871,1739754647441,-500.0,0.00011449,2]
[353315872,1739754647450,-500.0,0.00011449,2]
[353315873,1739754647459,-500.0,0.00011449,2]
[353315874,1739754647469,-500.0,0.00011449,2]
[353315875,1739754647478,-500.0,0.00011449,2]
[353315876,1739754647489,-500.0,0.00011449,2]
[353315877,1739754647499,-500.0,0.00011449,2]
[353315878,1739754647508,-500.0,0.00011449,2]
[353315879,1739754647518,-511.72,0.00011449,2]
[353315880,1739754647528,-500.0,0.00011449,2]
[353315881,1739754647538,-500.0,0.00011449,2]
[353315882,1739754647547,-500.0,0.00011449,2]
[353315883,1739754647557,-500.0,0.00011449,2]
[353315884,1739754647566,-500.0,0.00011449,2]
[353315885,1739754647575,-500.0,0.00011449,2]
[353315886,1739754647586,-500.0,0.00011449,2]
[353315887,1739754647595,-500.0,0.00011449,2]
[353315888,1739754647605,-500.0,0.00011449,2]
[353315889,1739754647615,-500.0,0.00011449,2]
[353315890,1739754647625,-382.98064829,0.00011449,2]
[353315891,1739754647634,-500.0,0.00011449,2]
[353315892,1739754647644,-500.0,0.00011449,2]
[353315893,1739754647654,-500.0,0.00011449,2]
[353315894,1739754647663,-500.0,0.00011449,2]
[353315895,1739754647672,-500.0,0.00011449,2]
[353315896,1739754647686,-500.0,0.00011449,2]
[353315897,1739754647695,-500.0,0.00011449,2]
[353315898,1739754647705,-500.0,0.00011449,2]
[353315899,1739754647715,-500.0,0.00011449,2]
[353315900,1739754647726,-500.0,0.00011449,2]
[353315901,1739754647735,-500.0,0.00011449,2]
[353315902,1739754647744,-500.0,0.00011449,2]
[353315903,1739754647754,-500.0,0.00011449,2]
[353315904,1739754647764,-500.0,0.00011449,2]
[353315905,1739754647774,-500.0,0.00011449,2]
[353315906,1739754647783,-500.0,0.00011449,2]
[353315907,1739754647792,-412.91306123,0.00011449,2]
[353315908,1739754647802,-500.0,0.00011449,2]
[353315909,1739754647812,-500.0,0.00011449,2]
[353315910,1739754647821,-500.0,0.00011449,2]
[353315911,1739754647831,-500.0,0.0001145,2]
[353315912,1739754647840,-500.0,0.0001145,2]
[353315913,1739754647849,-500.0,0.0001145,2]
[353315914,1739754647858,-500.0,0.0001145,2]
[353315915,1739754647868,-255.71172947,0.0001145,2]
[353315916,1739754647877,-500.0,0.0001145,2]
[353315917,1739754647886,-500.0,0.0001145,2]
[353315918,1739754647896,-619.87142595,0.0001145,2]
[353315919,1739754647905,-500.0,0.0001145,2]
[353315920,1739754647914,-500.0,0.0001145,2]
[353315921,1739754647923,-500.0,0.0001145,2]
[353315922,1739754647933,-500.0,0.0001145,2]
[353315923,1739754647942,-500.0,0.0001145,2]
[353315924,1739754647951,-500.0,0.0001145,2]
[353315925,1739754647960,-500.0,0.0001145,2]
[353315926,1739754647969,-171.07940909,0.0001145,2]
[353315927,1739754647979,-500.0,0.0001145,2]
[353315928,1739754647988,-500.0,0.0001145,2]
[353315929,1739754647998,-500.0,0.0001145,2]
[353315930,1739754648008,-500.0,0.0001145,2]
[353315931,1739754648018,-500.0,0.0001145,2]
[353315932,1739754648027,-500.0,0.0001145,2]
[353315933,1739754648037,-500.0,0.0001145,2]
[353315934,1739754648047,-500.0,0.0001145,2]
[353315935,1739754648056,-500.0,0.0001145,2]
[353315936,1739754648065,-500.0,0.0001145,2]
[353315937,1739754648075,-500.0,0.0001145,2]
[353315938,1739754648084,-500.0,0.0001145,2]
[353315939,1739754648094,-500.0,0.0001145,2]
[353315940,1739754648103,-500.0,0.0001145,2]
[353315941,1739754648112,-186.31311923,0.0001145,2]
[353315942,1739754648121,-500.0,0.0001145,2]
[353315943,1739754648131,-500.0,0.0001145,2]
[353315944,1739754648141,-500.0,0.0001145,2]
[353315945,1739754648151,-589.36692784,0.0001145,2]
[353315946,1739754648162,-500.0,0.0001145,2]
[353315947,1739754648171,-500.0,0.0001145,2]
[353315948,1739754648181,-500.0,0.0001145,2]
[353315949,1739754648190,-500.0,0.0001145,2]
[353315950,1739754648200,-500.0,0.0001145,2]
[353315951,1739754648210,-500.0,0.0001145,2]
[353315952,1739754648220,-500.0,0.0001145,2]
[353315953,1739754648230,-500.0,0.0001145,2]
[353315954,1739754648239,-500.0,0.0001145,2]
[353315955,1739754648249,-500.0,0.0001145,2]
[353315956,1739754648259,-500.0,0.0001145,2]
[353315957,1739754648268,-500.0,0.0001145,2]
[353315958,1739754648279,-500.0,0.0001145,2]
[353315959,1739754648293,-596.42,0.0001145,2]
[353315960,1739754648304,-500.0,0.0001145,2]
[353315961,1739754648314,-500.0,0.0001145,2]
[353315962,1739754648324,-500.0,0.0001145,2]
[353315963,1739754648335,-500.0,0.0001145,2]
[353315964,1739754648345,-500.0,0.0001145,2]
[353315965,1739754648355,-699.35,0.0001145,2]
[353315966,1739754648365,-500.0,0.0001145,2]
[353315967,1739754648376,-500.0,0.0001145,2]
[353315968,1739754648386,-500.0,0.0001145,2]
[353315969,1739754648396,-500.0,0.0001145,2]
[353315970,1739754648408,-500.0,0.0001145,2]
[353315971,1739754648418,-500.0,0.0001145,2]
[353315972,1739754648428,-500.0,0.0001145,2]
[353315973,1739754648439,-500.0,0.0001145,2]
[353315974,1739754648449,-460.53,0.0001145,2]
[353315975,1739754648460,-504.36,0.0001145,2]
[353315976,1739754648471,-500.0,0.0001145,2]
[353315977,1739754648481,-602.39,0.0001145,2]
[353315978,1739754648491,-500.0,0.0001145,2]
[353315979,1739754648501,-581.03,0.0001145,2]
[353315980,1739754648511,-500.0,0.0001145,2]
[353315981,1739754648521,-707.17,0.0001145,2]
[353315982,1739754648531,-500.0,0.0001145,2]
[353315983,1739754648541,-500.0,0.0001145,2]
[353315984,1739754648551,-629.87,0.0001145,2]
[353315985,1739754648561,-778.95,0.0001145,2]
[353315986,1739754648571,-2008.16,0.0001145,2]
[353315987,1739754648580,-831.53,0.0001145,2]
[353315988,1739754648590,-500.0,0.0001145,2]
[353315989,1739754648600,-667.86,0.0001145,2]
[353315990,1739754648610,-500.0,0.0001145,2]
[353315991,1739754648619,-500.0,0.0001145,2]
[353315992,1739754648629,-945.33,0.0001145,2]
[353315993,1739754648639,-500.0,0.0001145,2]
[353315994,1739754648650,-500.0,0.0001145,2]
[353315995,1739754648660,-593.44,0.0001145,2]
[353315996,1739754648670,-733.98,0.0001145,2]
[353315997,1739754648681,-500.0,0.0001145,2]
[353315998,1739754648691,-500.0,0.0001145,2]
[353315999,1739754648701,-914.52,0.0001145,2]
[353316000,1739754648712,-500.0,0.0001145,2]
[353316001,1739754648722,-1000.0,0.0001145,2]
[353316002,1739754648732,-662.75,0.0001145,2]
[353316003,1739754648742,-500.0,0.0001145,2]
[353316004,1739754648751,-500.0,0.0001145,2]
[353316005,1739754648762,-893.22,0.0001145,2]
[353316006,1739754648772,-500.0,0.0001145,2]
[353316007,1739754648782,-500.0,0.0001145,2]
[353316008,1739754648792,-419.82525921,0.00011471,2]
[353316009,1739754648803,-419.82525921,0.00011505,2]
[353316010,1739754648815,-150.0,0.00011507,2]
[353316011,1739754648825,-507.36490646,0.00011512,2]
[353316012,1739754648837,-203.23823742,0.00011521,2]
[353316013,1739754648847,-484.2578979,0.0001153,3]
[353316014,1739754648857,-524.915154,0.0001153,2]
[353316015,1739754648868,-500.0,0.0001153,2]
[353316016,1739754648878,-500.0,0.0001153,2]
[353316017,1739754648889,-500.0,0.0001153,2]
[353316018,1739754648899,-781.0,0.0001153,2]
[353316019,1739754648910,-951.22,0.0001153,2]
[353316020,1739754648920,-512.16,0.0001153,2]
[353316021,1739754648930,-500.0,0.0001153,2]
[353316022,1739754648941,-425.245562,0.0001153,2]
[353316023,1739754648952,-580.09,0.0001153,2]
[353316024,1739754648962,-500.0,0.0001153,2]
[353316025,1739754648971,-500.0,0.0001153,2]
[353316026,1739754648982,-639.21,0.0001153,2]
[353316027,1739754648992,-695.47,0.0001153,2]
[353316028,1739754649003,-500.0,0.0001153,2]
[353316029,1739754649012,-500.0,0.0001153,2]
[353316030,1739754649022,-609.51,0.0001153,2]
[353316031,1739754649031,-990.13,0.0001153,2]
[353316032,1739754649041,-500.0,0.0001153,2]
[353316033,1739754649050,-413.1,0.0001153,2]
[353316034,1739754649059,-500.0,0.0001153,2]
[353316035,1739754649068,-500.0,0.0001153,2]
[353316036,1739754649078,-500.0,0.0001153,2]
[353316037,1739754649088,-500.0,0.0001153,2]
[353316038,1739754649098,-500.0,0.0001153,2]
[353316039,1739754649109,-1578.55,0.0001153,2]
[353316040,1739754649119,-1135.12,0.0001153,2]
[353316041,1739754649129,-500.0,0.0001153,2]
[353316042,1739754649138,-500.0,0.0001153,2]
[353316043,1739754649150,-500.0,0.0001153,2]
[353316044,1739754649160,-594.49,0.0001153,2]
[353316045,1739754649171,-500.0,0.0001153,2]
[353316046,1739754649182,-500.0,0.0001153,2]
[353316047,1739754649192,-500.0,0.0001153,2]
[353316048,1739754649203,-500.0,0.0001153,2]
[353316049,1739754649213,-1004.26,0.0001153,2]
[353316050,1739754649224,-650.83,0.0001153,2]
[353316051,1739754649234,-500.0,0.0001153,2]
[353316052,1739754649245,-500.0,0.0001153,2]
[353316053,1739754649256,-500.0,0.0001153,2]
[353316054,1739754649266,-522.71,0.0001153,2]
[353316055,1739754649276,-833.71,0.0001153,2]
[353316056,1739754649287,-574.05,0.0001153,2]
[353316057,1739754649298,-500.0,0.0001153,2]
[353316058,1739754649308,-500.0,0.0001153,2]
[353316059,1739754649320,-500.0,0.0001153,2]
[353316060,1739754649331,-500.0,0.0001153,2]
[353316061,1739754649342,-500.0,0.0001153,2]
[353316062,1739754649352,-500.0,0.0001153,2]
[353316063,1739754649364,-500.0,0.0001153,2]
[353316064,1739754649376,-512.0,0.0001153,2]
[353316065,1739754649386,-969.17,0.0001153,2]
[353316066,1739754649398,-500.0,0.0001153,2]
[353316067,1739754649408,-500.0,0.0001153,2]
[353316068,1739754649418,-500.0,0.0001153,2]
[353316069,1739754649428,-500.0,0.0001153,2]
[353316070,1739754649439,-506.96,0.0001153,2]
[353316071,1739754649449,-500.0,0.0001153,2]
[353316072,1739754649459,-500.0,0.0001153,2]
[353316073,1739754649470,-500.0,0.0001153,2]
[353316074,1739754649479,-500.0,0.0001153,2]
[353316075,1739754649490,-500.0,0.0001153,2]
[353316076,1739754649500,-500.0,0.0001153,2]
[353316077,1739754649510,-500.0,0.0001153,2]
[353316078,1739754649520,-564.12,0.0001153,2]
[353316079,1739754649530,-500.0,0.0001153,2]
[353316080,1739754649539,-744202.02547629,0.00011531,3]
[353316081,1739754649899,-4710.59138291,0.00011531,3]
[353316082,1739754649911,-13361.48780958,0.00011531,3]
[353316083,1739754649924,-8431.155802,0.00011531,3]
[353316084,1739754649937,-6018.81893899,0.00011531,3]
[353316085,1739754650665,-348.69816404,0.00011282,2]
[353316086,1739754650679,-500.0,0.00011282,2]
[353316087,1739754650693,-500.0,0.00011282,2]
[353316088,1739754650709,-253.00695632,0.00011282,2]
[353316089,1739754650722,-500.0,0.00011282,2]
[353316090,1739754650736,-281.69060875,0.00011282,2]
[353316091,1739754650749,-500.0,0.00011282,2]
[353316092,1739754650764,-500.0,0.00011282,2]
[353316093,1739754650778,-500.0,0.00011282,2]
[353316094,1739754650791,-500.0,0.00011282,2]
[353316095,1739754650801,-500.0,0.00011283,2]
[353316096,1739754650815,-500.0,0.00011285,2]
[353316097,1739754650831,-500.0,0.00011366,2]
[353316098,1739754650842,-500.0,0.00011366,2]
[353316099,1739754650853,-500.0,0.00011448,2]
[353316100,1739754650868,-500.0,0.00011448,2]
[353316101,1739754650880,-500.0,0.0001153,2]
[353316102,1739754650890,-500.0,0.0001153,2]
[353316103,1739754650902,-44455.6513028,0.0001153,3]
[353316104,1739754650929,-4967.96107433,0.0001153,3]
[353316105,1739754651267,-1236.18809784,0.0001153,3]
[353316106,1739754651438,-964.0,0.0001153,3]
[353316107,1739754651696,-503.39186551,0.00011202,2]
[353316108,1739754651706,-442.30813434,0.0001153,3]
[353316109,1739754802454,-1308.0541,8.836e-05,2]
[353316110,1739754802481,-150.0,8.904e-05,2]
[353316111,1739754802507,-7041.9459,8.973e-05,2]
[353316112,1739755002101,-1895.8824,8.836e-05,2]
[353316113,1739755002127,-4.1176,8.973e-05,2]
[353316114,1739755186262,978.91,8.456e-05,2]
[353316168,1739755838582,-816.8886,8.836e-05,2]
[353316169,1739755838592,-150.0,8.87e-05,2]
[353316170,1739755838602,-85.4598,8.973e-05,2]
[353316171,1739755838612,-150.0,9.719e-05,2]
[353316172,1739755838621,-150.0,9.719e-05,2]
[353316173,1739755838630,-437.54085145,9.828e-05,2]
[353316174,1739755838640,-300.0,9.999e-05,2]
[353316176,1739755838649,-150.0,9.999e-05,2]
[353316178,1739755838658,-361.44521737,9.999e-05,2]
[353316180,1739755838668,-1980.0,0.0001,3]
[353316182,1739755838677,-10738.0979375,0.0001,2]
[353316234,1739755840499,-1587.92249773,0.0001,2]
[353316235,1739755840511,-2589.34841132,0.0001,2]
[353316236,1739755840687,-31533.7715802,0.0001,2]
[353316286,1739755843527,-9648.6,0.0001,2]
[353316302,1739755928713,6622.1706,8.699e-05,2]
[353316303,1739755942075,7781.1676,8.699e-05,2]
[353316304,1739755952888,2657.0283,8.256e-05,2]
[353316305,1739755966597,3884.235,8.699e-05,2]
[353316306,1739755973115,198.0,0.0002,120]
[353316307,1739756026151,413.5483,8.119e-05,2]
[353316309,1739756206995,1000.0,0.0002,120]
[353316310,1739756302737,929.96,8.553e-05,2]
[353316311,1739756367032,-300.0,8.835e-05,2]
[353316312,1739756367054,-150.0,8.835e-05,2]
[353316313,1739756367075,-9550.0,8.836e-05,2]
[353316314,1739756367906,-10000.0,8.836e-05,2]
[353316315,1739756368629,-10000.0,8.836e-05,2]
[353316316,1739756369107,-4389.5036,8.836e-05,2]
[353316317,1739756369128,-3590.1299,8.836e-05,2]
[353316318,1739756369150,-2020.3665,8.836e-05,2]
[353316319,1739756369583,-10000.0,8.836e-05,2]
[353316320,1739756369920,-10000.0,8.836e-05,2]
[353316321,1739756370376,-10000.0,8.836e-05,2]
[353316322,1739756370733,-10000.0,8.836e-05,2]
[353316323,1739756371082,-10000.0,8.836e-05,2]
[353316324,1739756371714,-10000.0,8.836e-05,2]
[353316325,1739756372260,-10000.0,8.836e-05,2]
[353316326,1739756372766,-10000.0,8.836e-05,2]
[353316327,1739756373263,-2081.2745,8.836e-05,2]
[353316328,1739756373288,-485.9998,8.836e-05,2]
[353316329,1739756373311,-7432.7257,8.836e-05,2]
[353316330,1739756373708,-10000.0,8.836e-05,2]
[353316331,1739756373990,-4294.872,8.836e-05,2]
[353316332,1739756374013,-1008.7163,8.836e-05,2]
[353316333,1739756374040,-4696.4117,8.836e-05,2]
[353316334,1739756374411,-10000.0,8.836e-05,2]
[353316335,1739756374802,-10000.0,8.836e-05,2]
[353316336,1739756375196,-10000.0,8.836e-05,2]
[353316337,1739756375633,-10000.0,8.836e-05,2]
[353316338,1739756376128,-10000.0,8.836e-05,2]
[353316339,1739756383348,-2716.4832,8.836e-05,2]
[353316340,1739756383369,-180.4855,8.836e-05,2]
[353316341,1739756383390,-7103.0313,8.836e-05,2]
[353316342,1739756383869,-10000.0,8.836e-05,2]
[353316343,1739756384357,-10000.0,8.836e-05,2]
[353316344,1739756537459,3884.235,8.699e-05,2]
[353316345,1739756575634,-6166.6144,8.836e-05,2]
[353316346,1739756575656,-152.3217,8.836e-05,2]
[353316347,1739756575678,-3681.0639,8.836e-05,2]
[353316348,1739756642703,-300.0,8.835e-05,2]
[353316349,1739756642725,-331.5374,8.836e-05,2]
[353316350,1739756642747,-6588.3429,8.836e-05,2]
[353316351,1739756642769,-229.5364,8.836e-05,2]
[353316352,1739756643023,-2550.5833,8.836e-05,2]
[353316353,1739756643212,-10000.0,8.836e-05,2]
[353316354,1739756643687,-10000.0,8.836e-05,2]
[353316355,1739756644366,-10000.0,8.836e-05,2]
[353316356,1739756644826,-10000.0,8.836e-05,2]
[353316357,1739756645252,-10000.0,8.836e-05,2]
[353316358,1739756645635,-10000.0,8.836e-05,2]
[353316359,1739756646148,-10000.0,8.836e-05,2]
[353316360,1739756678983,-10000.0,8.836e-05,2]
[353316389,1739756983891,-6176.4316,8.836e-05,2]
[353316390,1739756983914,-1088.868,8.836e-05,2]
[353316391,1739756983934,-1808.2743,8.836e-05,2]
[353316392,1739756983955,-533.5948,8.836e-05,2]
[353316393,1739756983976,-150.0,8.844e-05,2]
[353316394,1739756983998,-242.8313,8.973e-05,2]
[353316395,1739756984895,-10000.0,8.973e-05,2]
[353316396,1739756985722,-10000.0,8.973e-05,2]
[353316397,1739756986519,-10000.0,8.973e-05,2]
[353316398,1739756987369,-10000.0,8.973e-05,2]
[353316403,1739757031503,-2717.37800164,8.973e-05,2]
[353316404,1739757031515,-400.78,8.973e-05,2]
[353316405,1739757031527,-1968.36159836,8.973e-05,2]
[353316406,1739757031536,-12680.16009493,9.436e-05,2]
[353316407,1739757031546,-150.0,9.699e-05,2]
[353316408,1739757031556,-150.0,9.719e-05,2]
[353316409,1739757031565,-1782.05,9.999e-05,2]
[353316410,1739757031575,-1000.0,9.999e-05,2]
[353316411,1739757031584,-1000.0,9.999e-05,2]
[353316412,1739757031594,-1000.0,9.999e-05,2]
[353316413,1739757031603,-1000.0,9.999e-05,2]
[353316414,1739757031613,-1000.0,9.999e-05,2]
[353316415,1739757031622,-1000.0,9.999e-05,2]
[353316416,1739757031632,-1000.0,9.999e-05,2]
[353316417,1739757031641,-1000.0,9.999e-05,2]
[353316418,1739757031651,-1000.0,9.999e-05,2]
[353316419,1739757031660,-1000.0,9.999e-05,2]
[353316420,1739757031670,-143200.90149495,0.0001,2]
[353316421,1739757031899,-6655.20901477,0.0001,2]
[353316422,1739757031956,-970.18624878,0.0001,2]
[353316425,1739757031967,-2898.15879972,0.0001,2]
[353316427,1739757031978,-357.355385,0.0001,2]
[353316430,1739757031999,-336.05171418,0.0001,2]
[353316433,1739757032020,-364213.0953856,0.0001,2]
[353316435,1739757032031,-2361.53110642,0.0001,2]
[353316438,1739757032042,-59362.22073619,0.0001,2]
[353316505,1739757039455,-348.22276909,0.0001,2]
[353316506,1739757039584,-878.931,0.0001,2]
[353316507,1739757039595,-704.92206708,0.0001,2]
[353316508,1739757039772,-7612.85235944,0.0001,2]
[353316509,1739757039784,-5547.1985574,0.0001,2]
[353316510,1739757039795,-756.3435,0.0001,2]
[353316606,1739757042891,-342886.09264398,0.0001,2]
[353316609,1739757042903,-7205.87367675,0.0001,2]
[353316612,1739757042931,-24178.01636701,0.0001,2]
[353316649,1739757045680,-4635.42850006,0.0001,2]
[353316650,1739757045692,-269.97829491,0.0001,2]
[353316651,1739757045703,-1266.48268735,0.0001,2]
[353316652,1739757045715,-19830.97207884,0.0001,2]
[353316654,1739757071741,888.0217,8.699e-05,2]
[353316655,1739757071763,5732.297,8.699e-05,2]
[353316656,1739757077419,266.7372,8.699e-05,2]
[353316657,1739757083581,4000.9658,8.699e-05,2]
[353316658,1739757083602,10000.0,8.699e-05,2]
[353316659,1739757083622,10000.0,8.699e-05,2]
[353316660,1739757083642,7051.544,8.699e-05,2]
[353316661,1739757100383,2541.8882,8.699e-05,2]
[353316662,1739757107995,406.5678,8.699e-05,2]
[353316663,1739757108018,3476.6667,8.699e-05,2]
[353316664,1739757124118,1217.4084,8.699e-05,2]
[353316665,1739757216150,454.0409,8.699e-05,2]
[353316666,1739757245214,2011.7659,8.699e-05,2]
[353316667,1739757275061,4823.749187,8.791e-05,2]
[353316668,1739757288035,7892.7183,8.699e-05,2]
[353316669,1739757643726,51206.31181828,0.0002,120]
[353316670,1739757796992,8985.34,8e-05,2]
[353316801,1739758231899,-150.0,8.835e-05,2]
[353316802,1739758231909,-300.0,8.835e-05,2]